fUSD/lending_fUSD_20240814
["ID","MTS","AMOUNT","RATE_DAILY","PERIOD"]
[334845602,1723607523382,-285.50490637,0.0001589,2]
[334845603,1723607523396,-1579.62,0.0001589,2]
[334845604,1723607523408,-2868.97,0.0001589,2]
[334845605,1723607523420,-670.24,0.0001589,2]
[334845606,1723607523435,-500.0,0.0001589,2]
[334845607,1723607523448,-2601.3,0.0001589,2]
[334845608,1723607523461,-2583.71,0.0001589,2]
[334845609,1723607523472,-2687.31,0.0001589,2]
[334845610,1723607523484,-3504.73,0.0001589,2]
[334845611,1723607523497,-500.0,0.0001589,2]
[334845612,1723607523508,-3882.13,0.0001589,2]
[334845613,1723607523520,-698.86,0.0001589,2]
[334845614,1723607523532,-4107.19,0.0001589,2]
[334845615,1723607523543,-186.91012378,0.0001589,2]
[334845616,1723607523554,-2236.74,0.0001589,2]
[334845617,1723607523565,-786.88,0.0001589,2]
[334845618,1723607523576,-1100.89,0.0001589,2]
[334845619,1723607523588,-639.71,0.0001589,2]
[334845620,1723607523600,-500.0,0.0001589,2]
[334845621,1723607523611,-742.57,0.0001589,2]
[334845622,1723607523623,-500.0,0.0001589,2]
[334845623,1723607523634,-691.92,0.0001589,2]
[334845624,1723607523646,-1668.19,0.0001589,2]
[334845625,1723607523656,-500.0,0.0001589,2]
[334845626,1723607523667,-8906.01,0.0001589,2]
[334845627,1723607523678,-3096.07,0.0001589,2]
[334845628,1723607523689,-688.31,0.0001589,2]
[334845629,1723607523701,-370.22206137,0.0001589,2]
[334845630,1723607523726,-521.01,0.0001589,2]
[334845631,1723607523739,-2079.25,0.0001589,2]
[334845632,1723607523750,-3714.26,0.0001589,2]
[334845633,1723607523762,-501.12318417,0.0001589,2]
[334845634,1723607523773,-1386.58,0.0001589,2]
[334845635,1723607523784,-866.22,0.0001589,2]
[334845636,1723607523795,-7418.61,0.0001589,2]
[334845637,1723607523805,-887.71,0.0001589,2]
[334845638,1723607523815,-500.0,0.0001589,2]
[334845639,1723607523825,-3269.23,0.0001589,2]
[334845640,1723607523835,-1076.95,0.0001589,2]
[334845641,1723607523845,-5659.08,0.0001589,2]
[334845642,1723607523855,-2929.81,0.0001589,2]
[334845643,1723607523865,-1043.59,0.0001589,2]
[334845644,1723607523876,-500.0,0.0001589,2]
[334845645,1723607524016,-707.28,0.0001589,2]
[334845646,1723607524026,-2501.36,0.0001589,2]
[334845647,1723607524036,-3153.8,0.0001589,2]
[334845648,1723607524046,-1497.14,0.0001589,2]
[334845649,1723607524057,-3648.88,0.0001589,2]
[334845650,1723607524067,-4369.58,0.0001589,2]
[334845651,1723607524077,-500.0,0.0001589,2]
[334845652,1723607524086,-10558.66,0.0001589,2]
[334845653,1723607524097,-3991.69,0.0001589,2]
[334845654,1723607524106,-543.63,0.0001589,2]
[334845655,1723607524117,-617.95,0.0001589,2]
[334845656,1723607524127,-2141.4,0.0001589,2]
[334845657,1723607524141,-2617.38,0.0001589,2]
[334845658,1723607524150,-4898.32,0.0001589,2]
[334845659,1723607524162,-1048.11,0.0001589,2]
[334845660,1723607524172,-2200.01,0.0001589,2]
[334845661,1723607524182,-500.0,0.0001589,2]
[334845662,1723607524192,-680.5,0.0001589,2]
[334845663,1723607524202,-525.19,0.0001589,2]
[334845664,1723607524223,-3069.08,0.0001589,2]
[334845665,1723607524232,-4095.44,0.0001589,2]
[334845666,1723607524244,-1101.33,0.0001589,2]
[334845667,1723607524254,-3093.95,0.0001589,2]
[334845668,1723607524264,-1974.21,0.0001589,2]
[334845669,1723607524274,-1153.12,0.0001589,2]
[334845670,1723607524285,-500.0,0.0001589,2]
[334845671,1723607524295,-1698.84,0.0001589,2]
[334845672,1723607524304,-1954.47,0.0001589,2]
[334845673,1723607524314,-500.0,0.0001589,2]
[334845674,1723607524325,-500.0,0.0001589,2]
[334845675,1723607524336,-509.89694855,0.0001589,2]
[334845676,1723607524346,-1008.04,0.0001589,2]
[334845677,1723607524356,-1831.82,0.0001589,2]
[334845678,1723607524367,-456.84816506,0.0001589,2]
[334845679,1723607524377,-2865.91,0.0001589,2]
[334845680,1723607524387,-15566.61,0.0001589,2]
[334845681,1723607524399,-5487.49,0.0001589,2]
[334845682,1723607524410,-500.0,0.0001589,2]
[334845683,1723607524420,-1963.56,0.0001589,2]
[334845684,1723607524431,-597.8,0.0001589,2]
[334845685,1723607524442,-686.68,0.0001589,2]
[334845686,1723607524453,-500.0,0.0001589,2]
[334845687,1723607524471,-500.0,0.0001589,2]
[334845688,1723607524482,-1884.73,0.0001589,2]
[334845689,1723607524493,-206.57512195,0.0001589,2]
[334845690,1723607524503,-862.86,0.0001589,2]
[334845691,1723607524513,-213.00460394,0.00015999,2]
[334845692,1723607524523,-687.72540872,0.00016033,2]
[334845693,1723607524535,-503.0,0.000161,2]
[334845694,1723607524545,-495.0,0.000161,2]
[334845695,1723607524555,-543.11131689,0.00016159,2]
[334845696,1723607524564,-688.3,0.00016164,2]
[334845697,1723607524574,-563.09,0.00016164,2]
[334845698,1723607524583,-500.0,0.00016164,2]
[334845699,1723607524593,-712.92,0.00016164,2]
[334845700,1723607524603,-500.0,0.00016164,2]
[334845701,1723607524614,-500.0,0.00016164,2]
[334845702,1723607524624,-902.09,0.00016164,2]
[334845703,1723607524633,-500.0,0.00016164,2]
[334845704,1723607524644,-701.14,0.00016164,2]
[334845705,1723607524653,-506.71,0.00016164,2]
[334845706,1723607524663,-1472.55,0.00016164,2]
[334845707,1723607524673,-935.07,0.00016164,2]
[334845708,1723607524683,-500.0,0.00016164,2]
[334845709,1723607524694,-751.76,0.00016164,2]
[334845710,1723607524704,-1022.73,0.00016164,2]
[334845711,1723607524722,-1673.07,0.00016164,2]
[334845712,1723607524732,-891.04,0.00016164,2]
[334845713,1723607524742,-622.07,0.00016164,2]
[334845714,1723607524752,-781.14,0.00016164,2]
[334845715,1723607524762,-500.0,0.00016164,2]
[334845716,1723607524772,-500.0,0.00016164,2]
[334845717,1723607524782,-500.0,0.00016164,2]
[334845718,1723607524792,-500.0,0.00016164,2]
[334845719,1723607524801,-500.0,0.00016164,2]
[334845720,1723607524811,-500.0,0.00016164,2]
[334845721,1723607524821,-547.55,0.00016164,2]
[334845722,1723607524831,-812.22,0.00016164,2]
[334845723,1723607524841,-500.0,0.00016164,2]
[334845724,1723607524852,-637.41,0.00016164,2]
[334845725,1723607524863,-1070.95,0.00016164,2]
[334845726,1723607524873,-1063.75,0.00016164,2]
[334845727,1723607524883,-727.22,0.00016164,2]
[334845728,1723607524893,-500.0,0.00016164,2]
[334845729,1723607524902,-500.0,0.00016164,2]
[334845730,1723607524912,-1698.66,0.00016164,2]
[334845731,1723607524922,-1060.55,0.00016164,2]
[334845732,1723607524932,-500.0,0.00016164,2]
[334845733,1723607524942,-500.0,0.00016164,2]
[334845734,1723607524952,-500.0,0.00016164,2]
[334845735,1723607524967,-799.52,0.00016164,2]
[334845736,1723607524976,-500.0,0.00016164,2]
[334845737,1723607524986,-500.0,0.00016164,2]
[334845738,1723607524995,-500.0,0.00016164,2]
[334845739,1723607525005,-1647.39,0.00016164,2]
[334845740,1723607525015,-612.24,0.00016164,2]
[334845741,1723607525025,-500.0,0.00016164,2]
[334845742,1723607525036,-500.0,0.00016164,2]
[334845743,1723607525045,-611.16,0.00016164,2]
[334845744,1723607525054,-500.0,0.00016164,2]
[334845745,1723607525063,-500.0,0.00016164,2]
[334845746,1723607525072,-1328.0,0.00016164,2]
[334845747,1723607525082,-1488.34,0.00016164,2]
[334845748,1723607525091,-609.98,0.00016164,2]
[334845749,1723607525102,-734.92,0.00016164,2]
[334845750,1723607525111,-518.07,0.00016164,2]
[334845751,1723607525121,-500.0,0.00016164,2]
[334845752,1723607525131,-1665.35,0.00016164,2]
[334845753,1723607525141,-500.0,0.00016164,2]
[334845754,1723607525151,-500.0,0.00016164,2]
[334845755,1723607525161,-1119.92,0.00016164,2]
[334845756,1723607525170,-507.19,0.00016164,2]
[334845757,1723607525179,-1027.86,0.00016164,2]
[334845758,1723607525188,-500.0,0.00016164,2]
[334845759,1723607525198,-500.0,0.00016164,2]
[334845760,1723607525210,-500.0,0.00016164,2]
[334845761,1723607525220,-500.0,0.00016164,2]
[334845762,1723607525229,-1665.72,0.00016164,2]
[334845763,1723607525241,-500.0,0.00016164,2]
[334845764,1723607525251,-543.84,0.00016164,2]
[334845765,1723607525261,-703.07,0.00016164,2]
[334845766,1723607525270,-667.07,0.00016164,2]
[334845767,1723607525280,-731.8,0.00016164,2]
[334845768,1723607525289,-500.0,0.00016164,2]
[334845769,1723607525298,-500.0,0.00016164,2]
[334845770,1723607525307,-500.0,0.00016164,2]
[334845771,1723607525317,-1474.25,0.00016164,2]
[334845772,1723607525328,-654.55,0.00016164,2]
[334845773,1723607525338,-935.71,0.00016164,2]
[334845774,1723607525350,-500.0,0.00016164,2]
[334845775,1723607525361,-795.43,0.00016164,2]
[334845776,1723607525371,-500.0,0.00016164,2]
[334845777,1723607525380,-252.37798601,0.00016164,2]
[334845778,1723607525389,-1291.26,0.00016164,2]
[334845779,1723607525400,-500.0,0.00016164,2]
[334845780,1723607525410,-1621.49,0.00016164,2]
[334845781,1723607525419,-500.0,0.00016164,2]
[334845782,1723607525428,-1600.49,0.00016164,2]
[334845783,1723607525438,-553.51,0.00016164,2]
[334845784,1723607525447,-1806.84,0.00016164,2]
[334845785,1723607525459,-712.18,0.00016164,2]
[334845786,1723607525468,-521.1,0.00016164,2]
[334845787,1723607525479,-1895.99,0.00016164,2]
[334845788,1723607525488,-1877.59,0.00016164,2]
[334845789,1723607525498,-1723.01,0.00016164,2]
[334845790,1723607525507,-500.0,0.00016164,2]
[334845791,1723607525516,-500.0,0.00016164,2]
[334845792,1723607525526,-631.87,0.00016164,2]
[334845793,1723607525535,-843.0,0.00016164,2]
[334845794,1723607525545,-997.63,0.00016164,2]
[334845795,1723607525554,-500.0,0.00016164,2]
[334845796,1723607525563,-500.0,0.00016164,2]
[334845797,1723607525573,-500.0,0.00016164,2]
[334845798,1723607525582,-1073.69,0.00016164,2]
[334845799,1723607525591,-903.82,0.00016164,2]
[334845800,1723607525601,-1215.4,0.00016164,2]
[334845801,1723607525610,-674.42,0.00016164,2]
[334845802,1723607525619,-1982.45,0.00016164,2]
[334845803,1723607525628,-1082.37,0.00016164,2]
[334845804,1723607525637,-2111.74,0.00016164,2]
[334845805,1723607525646,-1233.9,0.00016164,2]
[334845806,1723607525656,-3815.52,0.00016164,2]
[334845807,1723607525666,-500.0,0.00016164,2]
[334845808,1723607525676,-848.59,0.00016164,2]
[334845809,1723607525686,-2334.24,0.00016164,2]
[334845810,1723607525696,-718.84,0.00016164,2]
[334845811,1723607525707,-500.0,0.00016164,2]
[334845812,1723607525717,-1454.45,0.00016164,2]
[334845813,1723607525726,-996.86,0.00016164,2]
[334845814,1723607525735,-1413.89,0.00016164,2]
[334845815,1723607525744,-1306.14,0.00016164,2]
[334845816,1723607525754,-500.0,0.00016164,2]
[334845817,1723607525764,-2059.77,0.00016164,2]
[334845818,1723607525773,-851.44,0.00016164,2]
[334845819,1723607525783,-1108.11,0.00016164,2]
[334845820,1723607525792,-701.35,0.00016164,2]
[334845821,1723607525801,-592.2,0.00016164,2]
[334845822,1723607525811,-863.81,0.00016164,2]
[334845823,1723607525822,-842.9,0.00016164,2]
[334845824,1723607525832,-275.96169472,0.00016164,2]
[334845825,1723607525841,-640.01,0.00016164,2]
[334845826,1723607525850,-1173.01,0.00016164,2]
[334845827,1723607525861,-500.0,0.00016164,2]
[334845828,1723607525870,-1366.52,0.00016164,2]
[334845829,1723607525880,-1120.85,0.00016164,2]
[334845830,1723607525890,-511.88109868,0.00016164,2]
[334845831,1723607525899,-666.14,0.00016164,2]
[334845832,1723607525909,-527.01,0.00016164,2]
[334845833,1723607525918,-1024.41,0.00016164,2]
[334845834,1723607525928,-500.0,0.00016164,2]
[334845835,1723607525938,-573.18204543,0.00016164,2]
[334845836,1723607525947,-2173.7,0.00016164,2]
[334845837,1723607525959,-1345.95,0.00016164,2]
[334845838,1723607525968,-984.97,0.00016164,2]
[334845839,1723607525977,-2468.39,0.00016164,2]
[334845840,1723607525987,-737.25,0.00016164,2]
[334845841,1723607525996,-500.0,0.00016164,2]
[334845842,1723607526006,-990.66,0.00016164,2]
[334845843,1723607526015,-836.37,0.00016164,2]
[334845844,1723607526025,-652.06,0.00016164,2]
[334845845,1723607526034,-1124.45,0.00016164,2]
[334845846,1723607526043,-617.29,0.00016164,2]
[334845847,1723607526052,-657.84,0.00016164,2]
[334845848,1723607526063,-1513.15,0.00016164,2]
[334845849,1723607526072,-1128.09,0.00016164,2]
[334845850,1723607526082,-1593.05,0.00016164,2]
[334845851,1723607526092,-1465.45,0.00016164,2]
[334845852,1723607526101,-512.37,0.00016164,2]
[334845853,1723607526111,-1433.68,0.00016164,2]
[334845854,1723607526120,-500.0,0.00016164,2]
[334845855,1723607526130,-1436.38,0.00016164,2]
[334845856,1723607526142,-566.62,0.00016164,2]
[334845857,1723607526152,-500.0,0.00016164,2]
[334845858,1723607526161,-980.27,0.00016164,2]
[334845859,1723607526171,-1757.62,0.00016164,2]
[334845860,1723607526181,-1090.22,0.00016164,2]
[334845861,1723607526191,-2446.57,0.00016164,2]
[334845862,1723607526201,-2344.16,0.00016164,2]
[334845863,1723607526212,-500.0,0.00016164,2]
[334845864,1723607526221,-500.0,0.00016164,2]
[334845865,1723607526231,-1919.8,0.00016164,2]
[334845866,1723607526241,-850.36,0.00016164,2]
[334845867,1723607526251,-743.85,0.00016164,2]
[334845868,1723607526261,-500.0,0.00016164,2]
[334845869,1723607526271,-713.35,0.00016164,2]
[334845870,1723607526281,-536.68,0.00016164,2]
[334845871,1723607526290,-654.34,0.00016164,2]
[334845872,1723607526300,-212.37507097,0.00016164,2]
[334845873,1723607526310,-557.78,0.00016164,2]
[334845874,1723607526321,-738.54,0.00016164,2]
[334845875,1723607526331,-500.0,0.00016164,2]
[334845876,1723607526340,-500.0,0.00016164,2]
[334845877,1723607526349,-1222.0,0.00016164,2]
[334845878,1723607526358,-1232.17,0.00016164,2]
[334845879,1723607526369,-759.17,0.00016164,2]
[334845880,1723607526379,-1276.5,0.00016164,2]
[334845881,1723607526389,-1227.19,0.00016164,2]
[334845882,1723607526399,-660.75,0.00016164,2]
[334845883,1723607526408,-1099.44,0.00016164,2]
[334845884,1723607526418,-500.0,0.00016164,2]
[334845885,1723607526428,-500.0,0.00016164,2]
[334845886,1723607526437,-2090.28,0.00016164,2]
[334845887,1723607526446,-508.15,0.00016164,2]
[334845888,1723607526455,-625.77704929,0.00016164,2]
[334845889,1723607526468,-500.0,0.00016164,2]
[334845890,1723607526478,-793.09,0.00016164,2]
[334845891,1723607526487,-500.0,0.00016164,2]
[334845892,1723607526496,-500.0,0.00016164,2]
[334845893,1723607526506,-1244.25,0.00016164,2]
[334845894,1723607526515,-808.2,0.00016164,2]
[334845895,1723607526524,-1870.71,0.00016164,2]
[334845896,1723607526534,-500.0,0.00016164,2]
[334845897,1723607526544,-1020.02,0.00016164,2]
[334845898,1723607526553,-1386.1,0.00016164,2]
[334845899,1723607526563,-732.86,0.00016164,2]
[334845900,1723607526573,-500.0,0.00016164,2]
[334845901,1723607526582,-1778.14,0.00016164,2]
[334845902,1723607526591,-400.0,0.00016164,2]
[334845903,1723607526601,-1254.8,0.00016164,2]
[334845904,1723607526610,-500.0,0.00016164,2]
[334845905,1723607526618,-2294.9,0.00016164,2]
[334845906,1723607526628,-500.0,0.00016164,2]
[334845907,1723607526637,-1685.71,0.00016164,2]
[334845908,1723607526646,-769.79,0.00016164,2]
[334845909,1723607526655,-1045.4,0.00016164,2]
[334845910,1723607526665,-500.0,0.00016164,2]
[334845911,1723607526674,-829.12,0.00016164,2]
[334845912,1723607526683,-1819.06,0.00016164,2]
[334845913,1723607526692,-584.66,0.00016164,2]
[334845914,1723607526701,-865.12,0.00016164,2]
[334845915,1723607526712,-1828.3,0.00016164,2]
[334845916,1723607526721,-1487.62,0.00016164,2]
[334845917,1723607526731,-1120.95,0.00016164,2]
[334845918,1723607526740,-1122.91,0.00016164,2]
[334845919,1723607526749,-862.4,0.00016164,2]
[334845920,1723607526758,-849.24,0.00016164,2]
[334845921,1723607526767,-1564.47,0.00016164,2]
[334845922,1723607526776,-866.92,0.00016164,2]
[334845923,1723607526785,-159.27259484,0.00016164,2]
[334845924,1723607526795,-500.0,0.00016164,2]
[334845925,1723607526803,-1212.45,0.00016164,2]
[334845926,1723607526812,-1055.57,0.00016164,2]
[334845927,1723607526822,-2613.0,0.00016164,2]
[334845928,1723607526831,-1994.05,0.00016164,2]
[334845929,1723607526840,-857.51,0.00016164,2]
[334845930,1723607526849,-1338.26,0.00016164,2]
[334845931,1723607526858,-1351.32,0.00016164,2]
[334845932,1723607526867,-500.0,0.00016164,2]
[334845933,1723607526877,-500.0,0.00016164,2]
[334845934,1723607526886,-1111.34,0.00016164,2]
[334845935,1723607526895,-2029.71,0.00016164,2]
[334845936,1723607526905,-3777.94,0.00016164,2]
[334845937,1723607526914,-500.0,0.00016164,2]
[334845938,1723607526923,-500.0,0.00016164,2]
[334845939,1723607526933,-500.0,0.00016164,2]
[334845940,1723607526942,-921.58,0.00016164,2]
[334845941,1723607526951,-689.07,0.00016164,2]
[334845942,1723607526963,-833.34,0.00016164,2]
[334845943,1723607526972,-159.84191636,0.00016164,2]
[334845944,1723607526981,-500.0,0.00016164,2]
[334845945,1723607526991,-568.61,0.00016164,2]
[334845946,1723607527001,-500.0,0.00016164,2]
[334845947,1723607527011,-589.77,0.00016164,2]
[334845948,1723607527020,-1554.5,0.00016164,2]
[334845949,1723607527029,-500.0,0.00016164,2]
[334845950,1723607527038,-500.0,0.00016164,2]
[334845951,1723607527047,-500.0,0.00016164,2]
[334845952,1723607527056,-500.0,0.00016164,2]
[334845953,1723607527066,-783.79,0.00016164,2]
[334845954,1723607527075,-1921.5,0.00016164,2]
[334845955,1723607527084,-2631.07,0.00016164,2]
[334845956,1723607527094,-549.40177999,0.00016164,2]
[334845957,1723607527103,-505.7,0.00016164,2]
[334845958,1723607527113,-573.43,0.00016164,2]
[334845959,1723607527122,-1200.87,0.00016164,2]
[334845960,1723607527131,-500.0,0.00016164,2]
[334845961,1723607527144,-1361.66,0.00016164,2]
[334845962,1723607527153,-2549.22,0.00016164,2]
[334845963,1723607527163,-500.0,0.00016164,2]
[334845964,1723607527172,-592.75,0.00016164,2]
[334845965,1723607527182,-1917.84,0.00016164,2]
[334845966,1723607527191,-965.13,0.00016164,2]
[334845967,1723607527200,-1397.22,0.00016164,2]
[334845968,1723607527212,-1460.11,0.00016164,2]
[334845969,1723607527222,-538.08208956,0.00016164,2]
[334845970,1723607527232,-500.0,0.00016164,2]
[334845971,1723607527242,-844.41,0.00016164,2]
[334845972,1723607527252,-764.1,0.00016164,2]
[334845973,1723607527261,-1274.82,0.00016164,2]
[334845974,1723607527272,-2325.52,0.00016164,2]
[334845975,1723607527281,-1259.41,0.00016164,2]
[334845976,1723607527291,-500.0,0.00016164,2]
[334845977,1723607527300,-501.56351925,0.00016164,2]
[334845978,1723607527310,-500.0,0.00016164,2]
[334845979,1723607527320,-851.27,0.00016164,2]
[334845980,1723607527330,-929.25,0.00016164,2]
[334845981,1723607527340,-883.88,0.00016164,2]
[334845982,1723607527349,-512.16,0.00016164,2]
[334845983,1723607527359,-2127.39,0.00016164,2]
[334845984,1723607527368,-589.33,0.00016164,2]
[334845985,1723607527378,-1891.32,0.00016164,2]
[334845986,1723607527387,-500.0,0.00016164,2]
[334845987,1723607527397,-2624.85,0.00016164,2]
[334845988,1723607527406,-2240.02,0.00016164,2]
[334845989,1723607527415,-2114.43,0.00016164,2]
[334845990,1723607527424,-500.0,0.00016164,2]
[334845991,1723607527433,-2489.36,0.00016164,2]
[334845992,1723607527442,-1630.74,0.00016164,2]
[334845993,1723607527452,-1834.05,0.00016164,2]
[334845994,1723607527463,-514.91,0.00016164,2]
[334845995,1723607527472,-530.28,0.00016164,2]
[334845996,1723607527481,-657.56,0.00016164,2]
[334845997,1723607527490,-580.46,0.00016164,2]
[334845998,1723607527499,-500.0,0.00016164,2]
[334845999,1723607527509,-2155.23,0.00016164,2]
[334846000,1723607527518,-729.49,0.00016164,2]
[334846001,1723607527528,-1292.57,0.00016164,2]
[334846002,1723607527538,-803.11,0.00016164,2]
[334846003,1723607527547,-500.0,0.00016164,2]
[334846004,1723607527558,-150.0,0.00016164,2]
[334846005,1723607527568,-784.66,0.00016164,2]
[334846006,1723607527578,-1484.83,0.00016164,2]
[334846007,1723607527588,-985.66,0.00016164,2]
[334846008,1723607527597,-558.89,0.00016164,2]
[334846009,1723607527607,-1171.57,0.00016164,2]
[334846010,1723607527618,-961.68,0.00016164,2]
[334846011,1723607527628,-150.0,0.00016164,2]
[334846012,1723607527638,-1433.08,0.00016164,2]
[334846013,1723607527647,-644.74,0.00016164,2]
[334846014,1723607527656,-1605.56,0.00016164,2]
[334846015,1723607527665,-544.66,0.00016164,2]
[334846016,1723607527675,-671.88,0.00016164,2]
[334846017,1723607527685,-966.64,0.00016164,2]
[334846018,1723607527694,-1438.91,0.00016164,2]
[334846019,1723607527703,-3279.05,0.00016164,2]
[334846020,1723607527715,-1269.61,0.00016164,2]
[334846021,1723607527725,-2431.77,0.00016164,2]
[334846022,1723607527737,-1897.29,0.00016164,2]
[334846023,1723607527747,-500.0,0.00016164,2]
[334846024,1723607527757,-1900.43,0.00016164,2]
[334846025,1723607527768,-2321.53,0.00016164,2]
[334846026,1723607527779,-500.0,0.00016164,2]
[334846027,1723607527789,-1225.74,0.00016164,2]
[334846028,1723607527800,-751.13,0.00016164,2]
[334846029,1723607527811,-500.0,0.00016164,2]
[334846030,1723607527822,-150.0,0.00016164,2]
[334846031,1723607527834,-2710.3,0.00016164,2]
[334846032,1723607527844,-590.22,0.00016164,2]
[334846033,1723607527854,-1784.2,0.00016164,2]
[334846034,1723607527864,-1096.21,0.00016164,2]
[334846035,1723607527875,-500.0,0.00016164,2]
[334846036,1723607527886,-500.0,0.00016164,2]
[334846037,1723607527896,-500.0,0.00016164,2]
[334846038,1723607527906,-500.0,0.00016164,2]
[334846039,1723607527916,-843.23,0.00016164,2]
[334846040,1723607527926,-161.73710669,0.00016164,2]
[334846041,1723607527935,-500.0,0.00016164,2]
[334846042,1723607527945,-630.2,0.00016164,2]
[334846043,1723607527955,-500.0,0.00016164,2]
[334846044,1723607527966,-500.0,0.00016164,2]
[334846045,1723607527976,-1522.48,0.00016164,2]
[334846046,1723607527986,-913.08,0.00016164,2]
[334846047,1723607527997,-357.98928033,0.00016164,2]
[334846048,1723607528007,-500.0,0.00016164,2]
[334846049,1723607528018,-1893.09,0.00016164,2]
[334846050,1723607528027,-648.5,0.00016164,2]
[334846051,1723607528036,-915.27,0.00016164,2]
[334846052,1723607528046,-500.0,0.00016164,2]
[334846053,1723607528056,-2186.94,0.00016164,2]
[334846054,1723607528066,-500.0,0.00016164,2]
[334846055,1723607528075,-500.0,0.00016164,2]
[334846056,1723607528086,-1677.03,0.00016164,2]
[334846057,1723607528097,-1309.3,0.00016164,2]
[334846058,1723607528107,-856.83,0.00016164,2]
[334846059,1723607528117,-794.25,0.00016164,2]
[334846060,1723607528127,-500.0,0.00016164,2]
[334846061,1723607528137,-1414.57,0.00016164,2]
[334846062,1723607528147,-1252.5,0.00016164,2]
[334846063,1723607528158,-3148.01,0.00016164,2]
[334846064,1723607528169,-696.1,0.00016164,2]
[334846065,1723607528179,-500.0,0.00016164,2]
[334846066,1723607528189,-3372.08,0.00016164,2]
[334846067,1723607528199,-150.0,0.00016164,2]
[334846068,1723607528211,-1053.98,0.00016164,2]
[334846069,1723607528220,-1421.12,0.00016164,2]
[334846070,1723607528232,-500.0,0.00016164,2]
[334846071,1723607528243,-6656.08,0.00016164,2]
[334846072,1723607528253,-500.0,0.00016164,2]
[334846073,1723607528263,-863.04,0.00016164,2]
[334846074,1723607528273,-640.54,0.00016164,2]
[334846075,1723607528283,-1185.24,0.00016164,2]
[334846076,1723607528292,-1337.92,0.00016164,2]
[334846077,1723607528302,-500.0,0.00016164,2]
[334846078,1723607528312,-881.61,0.00016164,2]
[334846079,1723607528322,-500.0,0.00016164,2]
[334846080,1723607528333,-4803.1,0.00016164,2]
[334846081,1723607528342,-548.08,0.00016164,2]
[334846082,1723607528352,-500.0,0.00016164,2]
[334846083,1723607528362,-3535.74,0.00016164,2]
[334846084,1723607528372,-390.588683,0.00016164,2]
[334846085,1723607528383,-500.0,0.00016164,2]
[334846086,1723607528395,-1286.34,0.00016164,2]
[334846087,1723607528406,-700.94,0.00016164,2]
[334846088,1723607528417,-500.0,0.00016164,2]
[334846089,1723607528427,-500.0,0.00016164,2]
[334846090,1723607528438,-500.0,0.00016164,2]
[334846091,1723607528449,-500.0,0.00016164,2]
[334846092,1723607528461,-605.71,0.00016164,2]
[334846093,1723607528471,-412.49548798,0.00016164,2]
[334846094,1723607528483,-500.0,0.00016164,2]
[334846095,1723607528494,-2533.03,0.00016164,2]
[334846096,1723607528507,-655.89,0.00016164,2]
[334846097,1723607528519,-528.71,0.00016164,2]
[334846098,1723607528528,-694.17,0.00016164,2]
[334846099,1723607528538,-500.0,0.00016164,2]
[334846100,1723607528548,-1287.07,0.00016164,2]
[334846101,1723607528557,-7712.44,0.00016164,2]